Cogmind - Beta 10.2 @@@ ROGUE MODE // 2021.05.06 @ 13:30:00 Player: Teratos Result: Self-destructed Performance ------------- Evolutions (3) 1500 Regions Visited (6) 1200 Robots Destroyed (145) 725 Value Destroyed (4391) 4391 Prototype IDs (12) 240 Alien Tech Used (0) 0 Bonus (1728) 1728 TOTAL SCORE: 9784 Bonus ------- High Alert Combat Kills 1028 Entered Garrisons 200 Used RIF Installer 500 Cogmind --------- Core Integrity 614/700 Matter 142/300 Energy 448/460 System Corruption 1% Temperature Cool (292) Movement Core (650) Ox12 Location -7/Factory Parts ------- > --- POWER (2) -------- Heavy Ion Engine Cooled Ion Engine > --- PROPULSION (2) --- (None) > --- UTILITY (4) ------ Improved Heat Sink Armor Integrity Analyzer > --- WEAPON (5) ------- Ion Cannon Ion Cannon Ion Cannon Mini Assault Cannon > --- INVENTORY (4) ---- Ion Cannon Ion Cannon Remote Datajack Peak State ------------ > --- POWER ------------ Heavy Ion Engine Cooled Ion Engine > --- PROPULSION ------- Light Treads Medium Treads > --- UTILITY ---------- Improved Heat Sink Cooling System Enhanced Optical Array Armor Integrity Analyzer > --- WEAPON ----------- Ion Cannon Ion Cannon Ion Cannon Ion Cannon Mini Assault Cannon > --- INVENTORY -------- Ion Cannon Ion Cannon Remote Datajack [Rating: 40] Favorites ----------- Power Cooled Ion Engine Engine Cooled Ion Engine Propulsion Light Treads Treads Light Treads Utility Heat Sink Device Heat Sink Storage Medium Battery Processor Armor Integrity Analyzer Weapon Advanced Beam Cannon Energy Gun Heavy EM Pulse Gun Energy Cannon Advanced Beam Cannon Ballistic Gun Light Assault Rifle Ballistic Cannon Improved Light Cannon Build | -11 -10 -9 -9 -9 -9 -7 ------- Run | Scr Mat Mat Sto Gar Rec Fac Slots Evolved 6 | . . 2 . . . 4 Power 1 | . . . . . . 1 Propulsion . | . . . . . . . Utility 2 | . . . . . . 2 Weapon 3 | . . 2 . . . 1 Parts Attached 64 | 5 5 22 17 2 . 13 Power 8 | 1 . 3 3 . . 1 Engine 8 | 1 . 3 3 . . 1 Core . | . . . . . . . Reactor . | . . . . . . . Propulsion 12 | 2 . 4 2 2 . 2 Treads 12 | 2 . 4 2 2 . 2 Leg . | . . . . . . . Wheel . | . . . . . . . Hover . | . . . . . . . Flight . | . . . . . . . Utility 15 | . 2 4 5 . . 4 Device 11 | . . 4 5 . . 2 Storage 2 | . 2 . . . . . Processor 2 | . . . . . . 2 Hackware . | . . . . . . . Protection . | . . . . . . . Artifact . | . . . . . . . Weapon 29 | 2 3 11 7 . . 6 Energy Gun 7 | 1 3 1 2 . . . Energy Cannon 15 | . . 6 4 . . 5 Ballistic Gun 2 | 1 . 1 . . . . Ballistic Cannon 5 | . . 3 1 . . 1 Launcher . | . . . . . . . Special Weapon . | . . . . . . . Impact Weapon . | . . . . . . . Slashing Weapon . | . . . . . . . Piercing Weapon . | . . . . . . . Special Melee Weapon . | . . . . . . . Unidentified Prototypes 5 | . . 2 2 . . 1 Parts Lost 12 | . . 4 3 1 . 4 Power 1 | . . 1 . . . . Propulsion 2 | . . 1 . . . 1 Utility 2 | . . . . . . 2 Weapon 7 | . . 2 3 1 . 1 Highest Loss Streak 4 | . . 3 1 1 . 4 Average Slot Usage (%) 93 | . 76 92 98 94 88 90 Engine 11 | . 14 10 11 11 11 15 Treads 21 | . 28 22 22 22 22 14 Device 16 | . . 5 21 22 22 17 Storage 3 | . 5 11 . . . . Processor 1 | . . . . . . 10 Energy Gun 7 | . 21 5 4 11 11 2 Energy Cannon 20 | . . 24 28 17 11 19 Ballistic Cannon 10 | . . 12 10 11 11 7 Naked Turns . | . . . . . . . Heaviest Build 48 | 8 13 27 27 26 22 48 Greatest Support 48 | 40 40 40 40 40 40 48 Greatest Overweight (x) . | . . . . . . . Average Overweight (x) . | . . . . . . . Largest Inventory Capacity 4 | 4 4 4 4 4 4 4 Average Capacity 4 | 4 4 4 4 4 4 4 Most Carried 4 | . . 3 4 4 3 4 Average Carried 2 | . . . 3 3 3 2 Final Capacity 4 | 4 4 4 4 4 4 4 Final Carried 3 | . . 2 3 3 3 3 Class Distribution -------------------- 82% | Gunner 11% | Scavenger-Gunner 6% | Mutant Dominant Class ---------------- Mutant | -10/Materials Gunner | -9/Materials Gunner | -9/Storage Gunner | -9/Garrison Gunner | -9/Recycling Gunner | -7/Factory Resources | -11 -10 -9 -9 -9 -9 -7 ----------- Run | Scr Mat Mat Sto Gar Rec Fac Matter Collected 1696 | 208 88 494 528 136 120 122 Remotely . | . . . . . . . Salvage Created 5413 | . 264 1398 2252 786 375 338 Parts 320 | . 10 86 135 39 40 10 Haulers Intercepted 12 | . 1 5 6 . . . Recyclers Shooed 2 | . . . 2 . . . Parts Field Recycled . | . . . . . . . Retrieved Matter . | . . . . . . . Parts Self-Destructed . | . . . . . . . Prevented . | . . . . . . . Kills | -11 -10 -9 -9 -9 -9 -7 ------- Run | Scr Mat Mat Sto Gar Rec Fac Combat Hostiles Destroyed 103 | . 3 27 40 16 10 7 Guns 16 | . 2 2 1 8 3 . Cannons 84 | . . 24 39 8 6 7 AOE 2 | . . 1 . . 1 . Classes Destroyed 13 | . 3 7 1 . 1 1 Worker 8 | . . 2 6 . . . Builder 5 | . . 1 1 . 3 . Hauler 12 | . 1 5 6 . . . Recycler 6 | . . 1 2 . 3 . Operator 2 | . . . 1 . . 1 Drone 10 | . . . . . 10 . Watcher 9 | . 2 4 2 . . 1 Swarmer 10 | . . 7 3 . . . Grunt 52 | . 3 11 24 9 . 5 Brawler 3 | . . 1 1 1 . . Duelist 3 | . . 1 . 1 . 1 Sentry 24 | . . 7 12 5 . . Programmer 1 | . . . . . . 1 Best Kill Streak 14 | . 2 14 11 3 6 3 Combat Bots Only 10 | . 2 10 7 3 2 3 Max Kills in Single Turn 2 | . 1 2 2 1 2 2 Gunslinging . | . . . . . . . Exploded 1 | . . 1 . . 1 . Melee . | . . . . . . . Uniques/NPCs Destroyed . | . . . . . . . Combat | -11 -10 -9 -9 -9 -9 -7 -------- Run | Scr Mat Mat Sto Gar Rec Fac Damage Taken 2547 | . 227 612 750 317 . 641 Core 315 | . 39 115 64 11 . 86 Absorbed by Shields . | . . . . . . . Core Remaining (%) 78 | 100 84 . . . 52 . Volleys Fired 259 | . 25 54 92 30 35 23 Largest 5 | . 2 4 4 4 3 5 Hottest 288 | . 80 243 243 220 152 288 Shots Fired 916 | . 50 186 353 114 105 108 Gun 169 | . 50 41 11 30 35 2 Cannon 747 | . . 145 342 84 70 106 Launcher . | . . . . . . . Special . | . . . . . . . Kinetic 267 | . 16 65 92 30 35 29 Thermal 491 | . 16 81 228 54 35 77 Explosive . | . . . . . . . Electromagnetic 158 | . 18 40 33 30 35 2 Robot Hit Streak 15 | . 10 14 13 13 1 15 Robot Miss Streak 20 | . 3 6 5 2 20 6 Penetration Max . | . . . . . . . Secondary Targets . | . . . . . . . Shots Hit Robots 385 | . 34 88 150 32 12 69 Core Hits 172 | . 11 43 62 19 16 21 Critical Hits 18 | . . 4 13 . 1 . Critical Kills 9 | . . 2 6 . 1 . Critical Parts Destroyed 9 | . . 2 7 . . . Melee Attacks . | . . . . . . . Impact . | . . . . . . . Slashing . | . . . . . . . Piercing . | . . . . . . . Sneak Attacks . | . . . . . . . Combat Hostiles . | . . . . . . . Follow-up Attacks . | . . . . . . . Damage Inflicted 8400 | . 460 1857 3239 519 542 1783 Guns 1320 | . 384 379 111 252 177 17 Cannons 6878 | . . 1441 3075 267 329 1766 Explosions 199 | . 76 37 53 . 33 . Melee . | . . . . . . . Ramming 3 | . . . . . 3 . Kinetic 2060 | . 106 636 772 40 123 383 Thermal 5178 | . 178 857 2294 227 239 1383 Explosive . | . . . . . . . Electromagnetic 1159 | . 176 364 173 252 177 17 Impact . | . . . . . . . Slashing . | . . . . . . . Piercing . | . . . . . . . Highest Corruption 1 | . . . 1 1 1 1 Average Corruption 1 | . . . 1 1 1 1 Corruption Purged . | . . . . . . . Effects 9 | . . . . 6 2 1 Message Errors 3 | . . . . 3 . . Energy Discharges 1 | . . . . 1 . . Data Loss (minor) 3 | . . . . 1 2 . Targeting Errors 2 | . . . . 1 . 1 Overload Shots . | . . . . . . . Overflow Damage 167 | . . 35 43 . 1 88 Projectiles 147 | . . 15 43 . 1 88 Explosions 20 | . . 20 . . . . Melee . | . . . . . . . Knockbacks 17 | . . 1 5 . 1 10 Impact . | . . . . . . . Kinetic 15 | . . 1 5 . 1 8 Secondary 2 | . . . . . . 2 Self-Inflicted Damage 53 | . 32 21 . . . . Shots 2 | . 1 1 . . . . Rammed 2 | . . . . . 2 . Targets Rammed 2 | . . . . . 2 . Kicked . | . . . . . . . Crushed . | . . . . . . . Highest Temperature 477 | . 208 477 294 129 . 465 Average Temperature 103 | . 84 122 96 39 . 152 Received Heat Transfer 987 | . 108 174 294 141 . 270 Effects 11 | . . 3 3 . . 5 Shutdowns 2 | . . 1 . . . 1 Energy Bleed 1 | . . 1 . . . . Interference 4 | . . . 3 . . 1 Short Circuit 1 | . . 1 . . . . Damage (major) 3 | . . . . . . 3 Siege Activations . | . . . . . . . Robots Corrupted 1 | . 1 . . . . . Combat Hostiles 1 | . 1 . . . . . Parts Fried 4 | . 2 2 . . . . Impact Corruptions . | . . . . . . . Robots Melted . | . . . . . . . Combat Hostiles . | . . . . . . . Parts Melted 13 | . 1 3 6 . . 3 Heat Transferred 8939 | . 396 1530 4207 407 420 1979 Parts Sabotaged . | . . . . . . . Parts Stolen . | . . . . . . . Parts Stripped . | . . . . . . . Power Chain Reactions 4 | . 1 1 1 . 1 . Missiles Intercepted . | . . . . . . . Alert | -11 -10 -9 -9 -9 -9 -7 ------- Run | Scr Mat Mat Sto Gar Rec Fac Peak Influence 1313 | . 121 553 985 1313 717 1105 Initial 1105 | . . 50 197 513 590 1105 Average 627 | . 67 342 592 946 619 1022 Maximum Alert Level 4 | . . 2 3 4 3 4 Low Security (%) 9 | 100 100 17 1 . . . Level 1 13 | . . 39 16 . . . Level 2 35 | . . 43 44 17 82 . Level 3 28 | . . . 37 43 17 58 Level 4 12 | . . . . 38 . 41 Level 5 . | . . . . . . . High Security . | . . . . . . . Max Security . | . . . . . . . Squads Dispatched 18 | . . 5 8 . . 5 Investigation 6 | . . 3 3 . . . Extermination 1 | . . . . . . 1 Reinforcement 5 | . . 1 3 . . 1 Assault 6 | . . 1 2 . . 3 Garrison . | . . . . . . . Intercept . | . . . . . . . Construction Impeded . | . . . . . . . Haulers Reinforced . | . . . . . . . Stealth | -11 -10 -9 -9 -9 -9 -7 --------- Run | Scr Mat Mat Sto Gar Rec Fac Distress Signals 7 | . 1 2 4 . . . Communications Jammed . | . . . . . . . Distress Signals . | . . . . . . . Times Spotted 155 | . 5 39 54 15 23 19 Peak Tracking Total 8 | . 2 8 6 4 3 7 Tactical Retreats 4 | . . 1 3 . . . Traps | -11 -10 -9 -9 -9 -9 -7 ------- Run | Scr Mat Mat Sto Gar Rec Fac Traps Triggered 4 | . . 1 3 . . . Indirectly . | . . . . . . . Trap Hack Attempts . | . . . . . . . Triggered . | . . . . . . . Disarmed . | . . . . . . . Reprogrammed 4 | . . . 4 . . . Reused 2 | . . . 2 . . . Traps Extracted . | . . . . . . . Installed . | . . . . . . . Triggered 2 | . . . 2 . . . Machines | -11 -10 -9 -9 -9 -9 -7 ---------- Run | Scr Mat Mat Sto Gar Rec Fac Machines Disabled 13 | . . 1 7 3 2 . Max in Single Turn 1 | . . 1 1 1 1 . Garrison Relay 3 | . . . . 3 . . Machines Sabotaged . | . . . . . . . Garrisons Compromised . | . . . . . . . Overloaded Fab Kills . | . . . . . . . Fab Network Shutdowns . | . . . . . . . Hacking | -11 -10 -9 -9 -9 -9 -7 --------- Run | Scr Mat Mat Sto Gar Rec Fac Machines Accessed 26 | . . 9 9 . 6 2 Terminals 22 | . . 9 6 . 6 1 Fabricators . | . . . . . . . Repair Stations 3 | . . . 2 . . 1 Recycling Units . | . . . . . . . Scanalyzers . | . . . . . . . Garrison Access 1 | . . . 1 . . . Total Hacks 70 | . . 18 30 . 18 4 Successful 40 | . . 12 16 . 9 3 Failed 30 | . . 6 14 . 9 1 Catastrophic 4 | . . 2 . . 2 . Database Lockouts . | . . . . . . . Manual . | . . . . . . . Terminals 57 | . . 18 19 . 18 2 Fabricators . | . . . . . . . Repair Stations 12 | . . . 10 . . 2 Recycling Units . | . . . . . . . Scanalyzers . | . . . . . . . Garrison Access 1 | . . . 1 . . . Terminal Hacks 31 | . . 12 9 . 9 1 Part Schematic 3 | . . . . . 3 . Robot Analysis 1 | . . . . . 1 . Prototype ID Bank 5 | . . 2 1 . 2 . Open Door 1 | . . . 1 . . . Emergency Access Points 1 | . . 1 . . . . Alert Level 2 | . . . 2 . . . Unreport Threat 2 | . . . 2 . . . Locate Traps 1 | . . . 1 . . . Reprogram Traps 1 | . . . 1 . . . Reinforcement Status 1 | . . 1 . . . . Registered Components 3 | . . 1 1 . 1 . Zone Layout 10 | . . 7 . . 2 1 Fabricator Hacks . | . . . . . . . Repair Station Hacks 8 | . . . 6 . . 2 Scan Component 5 | . . . 4 . . 1 Repair 3 | . . . 2 . . 1 Recycling Unit Hacks . | . . . . . . . Scanalyzer . | . . . . . . . Garrison Access Hacks 1 | . . . 1 . . . Unlock Access 1 | . . . 1 . . . Unauthorized Hacks . | . . . . . . . Terminals . | . . . . . . . Fabricators . | . . . . . . . Repair Stations . | . . . . . . . Recycling Units . | . . . . . . . Scanalyzers . | . . . . . . . Garrison Access . | . . . . . . . Data Cores Recovered . | . . . . . . . Used . | . . . . . . . Hacking Detections 18 | . . 7 6 . 5 . Full Trace Events 10 | . . 5 4 . 1 . Feedback Events 1 | . . . 1 . . . Corruption 1 | . . . 1 . . . Feedback Blocked . | . . . . . . . Robot Schematics Acquired . | . . . . . . . Robots Built . | . . . . . . . Matter . | . . . . . . . Time . | . . . . . . . Total Robot Build Rating . | . . . . . . . Part Schematics Acquired 3 | . . . . . 3 . Parts Built . | . . . . . . . Matter . | . . . . . . . Time . | . . . . . . . Total Part Build Rating . | . . . . . . . Parts Repaired 3 | . . . 2 . . 1 Time 91 | . . . 69 . . 22 Parts Recycled . | . . . . . . . Recycled Matter . | . . . . . . . Retrieved Matter . | . . . . . . . Retrieved Components . | . . . . . . . Parts Scanalyzed . | . . . . . . . Part Schematics Acquired . | . . . . . . . Parts Damaged . | . . . . . . . Bothacking | -11 -10 -9 -9 -9 -9 -7 ------------ Run | Scr Mat Mat Sto Gar Rec Fac Used RIF Installer 1 | . . . . 1 . . Robots Hacked . | . . . . . . . Non-combat . | . . . . . . . Combat . | . . . . . . . Robot Hacks Applied . | . . . . . . . Relay Couplers Released 14 | . . . . 14 . . Machine Destruction 14 | . . . . 14 . . Robots Rewired . | . . . . . . . Allies Hacked . | . . . . . . . Hacks Repelled . | . . . . . . . Allies | -11 -10 -9 -9 -9 -9 -7 -------- Run | Scr Mat Mat Sto Gar Rec Fac Total Allies . | . . . . . . . Largest Group . | . . . . . . . Highest-Rated Group . | . . . . . . . Highest-Rated Ally . | . . . . . . . Total Orders . | . . . . . . . Ally Attacks . | . . . . . . . Total Damage . | . . . . . . . Kills . | . . . . . . . Allies Corrupted . | . . . . . . . Allies Melted . | . . . . . . . Intel | -11 -10 -9 -9 -9 -9 -7 ------- Run | Scr Mat Mat Sto Gar Rec Fac Robot Analysis Total 1 | . . . . . 1 . Derelict Logs Recovered . | . . . . . . . Drone Launches . | . . . . . . . Drone Recoveries . | . . . . . . . Exploration | -11 -10 -9 -9 -9 -9 -7 ------------- Run | Scr Mat Mat Sto Gar Rec Fac Turns Passed 6905 | 62 317 1612 1966 1167 824 957 Spaces Moved 3433 | 37 122 819 888 624 441 502 Core 3 | 3 . . . . . . Treads 3430 | 34 122 819 888 624 441 502 Legs . | . . . . . . . Wheels . | . . . . . . . Hover . | . . . . . . . Flight . | . . . . . . . Fastest Speed 50 | 50 160 160 160 160 160 160 Average Speed 159 | 151 160 160 160 160 160 160 Slowest Speed 160 | 160 160 160 160 160 160 160 Overloaded Moves . | . . . . . . . Propulsion Burnouts . | . . . . . . . Robots Hopped . | . . . . . . . Cave-ins Triggered . | . . . . . . . Exploration Rate (%) 49 | 3 28 66 97 49 98 6 Regions Visited 6 Branch Regions 2 Pre-discovered Areas . | . . . . . . . Known Exits Taken 1 | . . . 1 . . . Unknown Exits Taken 4 | 1 1 1 . . 1 . Scrap Searched . | . . . . . . . Spaces Dug 10 | . . . 9 . . 1 Terrain Destroyed 38 | . 3 6 22 . 4 3 Melee . | . . . . . . . Projectile 25 | . . 4 16 . 2 3 AOE 13 | . 3 2 6 . 2 . Terrain Rammed . | . . . . . . . Walls Destroyed . | . . . . . . . Machines Disabled . | . . . . . . . Actions | -11 -10 -9 -9 -9 -9 -7 --------- Run | Scr Mat Mat Sto Gar Rec Fac Total 4225 | 41 196 989 1206 720 480 593 Wait 426 | . 42 78 195 64 3 44 Move 3426 | 36 121 818 887 622 440 502 Hop . | . . . . . . . Pick Up 5 | . . 1 1 . . 3 Fast Attach 53 | 5 5 20 13 . . 10 Attach 2 | . . . . . . 2 Detach 2 | . . 1 1 . . . Swap 10 | . . 3 4 2 . 1 Drop 38 | . 3 14 11 2 . 8 Fire 259 | . 25 54 92 30 35 23 Melee . | . . . . . . . Ram . | . . . . . . . Kick . | . . . . . . . Crush 2 | . . . . . 2 . Escape Stasis . | . . . . . . . Rewire 2 | . . . 2 . . . Trap . | . . . . . . . Miscellaneous . | . . . . . . . Route ------- -11/Scrapyard -10/Materials -9/Materials (discovered 4 exits: [*Mat x2] / [*Min] / *Sto) -9/Storage (discovered 2 exits: [*Mat] / Gar) -9/Garrison (discovered 2 exits: *Rec x2) -9/Recycling -7/Factory (discovered 1 exit: [*Fac]) History --------- Turn | Location | Event 4 | -11/Scrapyard | Discovered new exit (range 16) 63 | -11/Scrapyard | Entered Materials 248 | -10/Materials | Discovered new exit (range 7) 317 | -10/Materials | Build established: Mutant 380 | -10/Materials | Entered another Materials area 380 | -9/Materials | Evolved 2 slots: Weapon x2 742 | -9/Materials | Destroyed 10 combat bots 751 | -9/Materials | Lost 3 parts (1p1n1w) 878 | -9/Materials | Discovered new exit (range 7) 1000 | -9/Materials | Build established: Gunner 1749 | -9/Materials | Discovered new exit (range 6) 1898 | -9/Materials | Discovered new exit (range 12) 1957 | -9/Materials | Discovered new exit (range 10) 1980 | -9/Materials | First assault squad dispatched 1992 | -9/Materials | Entered Storage 2670 | -9/Storage | Build established: Scavenger-Gunner 2792 | -9/Storage | First assault squad dispatched 3156 | -9/Storage | Destroyed 7 combat bots 3328 | -9/Storage | Build established: Gunner 3380 | -9/Storage | Repaired Adv. Beam Cannon 3580 | -9/Storage | Repaired Broken Imp. Light Cannon 3731 | -9/Storage | Discovered new exit (range 16) 3957 | -9/Storage | Identified exit to Garrison 3958 | -9/Storage | Entered Garrison 3994 | -9/Garrison | Triggered checkpoint 4168 | -9/Garrison | Garrison Relay disabled 4322 | -9/Garrison | Triggered checkpoint 4391 | -9/Garrison | Triggered checkpoint 4485 | -9/Garrison | Triggered checkpoint 4572 | -9/Garrison | Triggered checkpoint 4674 | -9/Garrison | Garrison Relay disabled 4752 | -9/Garrison | Discovered new exit (range 8) 4900 | -9/Garrison | Triggered checkpoint 4969 | -9/Garrison | Discovered new exit (range 11) 5003 | -9/Garrison | Installed Relay Interface Framework 5062 | -9/Garrison | Garrison Relay disabled 5125 | -9/Garrison | Entered Recycling 5133 | -9/Recycling | Spotter reported a threat 5190 | -9/Recycling | Spotter reported a threat 5243 | -9/Recycling | Spotter reported a threat 5302 | -9/Recycling | Discovered new exit (range 3) 5324 | -9/Recycling | Spotter reported a threat 5329 | -9/Recycling | Spotter reported a threat 5342 | -9/Recycling | Spotter reported a threat 5355 | -9/Recycling | Spotter reported a threat 5382 | -9/Recycling | Spotter reported a threat 5387 | -9/Recycling | Spotter reported a threat 5466 | -9/Recycling | Spotter reported a threat 5517 | -9/Recycling | Spotter reported a threat 5567 | -9/Recycling | Spotter reported a threat 5597 | -9/Recycling | Spotter reported a threat 5643 | -9/Recycling | Spotter reported a threat 5649 | -9/Recycling | Spotter reported a threat 5688 | -9/Recycling | Spotter reported a threat 5702 | -9/Recycling | Spotter reported a threat 5787 | -9/Recycling | Spotter reported a threat 5884 | -9/Recycling | Spotter reported a threat 5916 | -9/Recycling | Spotter reported a threat 5935 | -9/Recycling | Spotter reported a threat 5937 | -9/Recycling | Spotter reported a threat 5949 | -9/Recycling | Entered Factory 5949 | -7/Factory | Evolved 4 slots: Power x1, Utility x2, Weapon x1 6129 | -7/Factory | Discovered new exit (range 5) 6647 | -7/Factory | Repaired Med. Treads 6749 | -7/Factory | First assault squad dispatched 6906 | -7/Factory | Self-destructed Last Messages --------------- 06885_ L-41 Fighter destroyed. 06885_ G-47 Trooper destroyed. 06889_ G-47 Trooper knocked back. 06893_ G-47 Trooper destroyed. 06897_ System corrupted: Ion Cannon targeting data glitched. 06897_ G-50 Soldier knocked back. 06898_ C-30 ARC bursts open, deploying its payload. 06898_ G-50 Soldier unfolds itself. 06898_ L-41 Fighter unfolds itself. 06898_ G-47 Trooper unfolds itself. 06898_ M-28 Smith unfolds itself. 06900_ Destroyed Hvy. Laser. 06900_ G-50 Soldier knocked back. 06901_ M-28 Smith fits Backup Laser III on G-50 Soldier. 06902_ Cooling System destroyed. 06903_ Overheating: System interference. 06903_ Ion Cannon temporarily disabled. 06905_ Lgt. Treads destroyed. 06906_ Heat Sink destroyed. 06906_ Ion Cannon destroyed. Map ----- +----------------------------------------------------+ | ??????????????????????????? "?????????????????? | | ??????????????????????????# "%#????????????????? | | ??????????????????????????# "#????????????????? | | ??????????????????????????# #????????????????? | | ??????????????????????????#^ ^#????????????????? | | ???????????????????? # ^ # # + | | ???????????????????? # # # # | | ???????????????????? # # # # | | ???????????????????? + + # # | | ????????????????????" """ # # """""" # # | | ????????????????????" """ # # """""" # # | | ????????????????????" """ # # """""" #####+### | | ???????????????????? # # """""" #???# #?? | | ????????????????????####### ##########???# #?? | | ?????????????????????????## #????????????# #?? | | ?????????????????????????## #????????????# #?? | | ?????????????############## #????????????# #?# | | ?????????????# # #????????????# #?# | | ?????????????# " " " # #????????????# ### | | ?????????????# " " " # ############## | | ?????????????# " " " # #%"T # ### | | ?????????????# " " " im %# # " ][ # #?# | | ?????????????# " " " gg%+ / " # #?# | | ?????????????# " " " %gg# # " # #?# | | ?????????????# " " " l%# # " # #?# | | ?????????????# " " " !@# # =% " # #?# | | ?????????????# " " " " "" # # " # #?# | | ?????????????# "R"" # #| " # #?# | | ############## """ # +% " # #?# | | # ############### # " *] # #?# | | # #?????????????# # ] # #?? | | # """" """" #?????????????# # # #?? | | # """" """" ############### #"############ #?? | | # """" """" # ###??????????# #?? | | # """" """" # #????????????# #?? | | # """" """" + #????????????# #?? | | # """" """" # #????????????????? | | # """" """" # #????????????????? | | # ##### ########????????????????? | | # #???# #???????????????????????? | | # #???# ##############?????????????????? | | # #???# #?????# """ #?????????????????? | | #############???# ####### """ #?????????????????? | | ????????????????# + """ #?????????????????? | | ????????????#####+##### # #?????????????????? | | ????????????# # #! #?????????????????? | | ????????????# # # [ #?????????????????? | | ????????????# # ########?????????????????? | | ????????????# # ##########???????????????? | | ????????????# # #???????????????? | +----------------------------------------------------+ Best States ------------- Heat Dissipation 80 Coolant Potential 50 Energy Generation 23 Energy Capacity 680 Matter Stores 300 Matter Capacity 300 Sight Range 22 Terrain Scan Density 10 Evasion (%) 40 Armor Integrity Analysis 33 Recoil Reduction 2 Item Schematics ----------------- Hvy. Ion Cannon | -9/Recycling | Hacked Hacking Suite | -9/Recycling | Hacked Plasma Cutter | -9/Recycling | Hacked Robot Schematics ------------------ None Fabricated ------------ Nothing Alien Tech Used ----------------- None Achievements -------------- None Challenges ------------ None Game ------ Seed GaussBurstArray Manual? 0 Play Time 00:59:57 Cumulative 53.5 hours Start 2021.05.06 @ 07:11:46 End 2021.05.06 @ 13:30:00 Sessions 3 Manual Loads 0 Difficulty Rogue Special Mode None Game No. 114 Rogue 114 Adventurer 0 Explorer 0 Win Type - Total 0 Types 0/0/0/0/0/0/0/0/0 Lore% 24 Gallery% 30 Achievement% 26 Wizard Run 0 Options --------- ASCII 0 Keyboard 0 Movement Numpad Keybinds 0 Fullscreen 1 Font 12/Smallcaps Map View 83x54 Tactical HUD 1 Map Filters NONE Filters NONE Steam 1 RUN: 4705a2c5-c566-4318-94ef-9597c9a3566f